bitfinex-derivatives/quotes_ETHF0:USTF0_20250210
["timestamp","ask_amount","ask_price","bid_price","bid_amount"]
[1739150143272,3.2078,2630.3,2629.8,3.2078]
[1739150143576,1.1773,2630.4,2629.8,3.2078]
[1739150143773,0.5617,2630.3,2629.8,3.2078]
[1739150143977,4.30102624,2630.2,2629.8,3.2078]
[1739150144274,8.07052624,2630.3,2629.8,3.2078]
[1739150144275,3.2078,2630.3,2630.0,2.77827401]
[1739150144472,5.0028,2630.9,2630.0,2.77827401]
[1739150144769,0.5812,2630.8,2630.0,2.77827401]
[1739150144969,4.30102624,2630.8,2630.3,2.77827401]
[1739150145172,0.5737,2631.0,2630.3,2.77827401]
[1739150145372,0.5737,2631.0,2630.4,40.8]
[1739150145677,0.5812,2631.2,2630.6,2.77827401]
[1739150145870,0.5812,2631.2,2630.7,0.5738]
[1739150146267,3.789,2631.2,2630.7,0.5738]
[1739150146470,3.789,2631.2,2630.6,2.77827401]
[1739150146769,4.31934721,2631.1,2630.4,44.0078]
[1739150147475,4.31934721,2631.1,2630.3,3.35207401]
[1739150147973,3.2078,2630.9,2630.3,0.5738]
[1739150148268,3.96791,2630.9,2630.1,0.5616]
[1739150148475,4.62317968,2630.8,2630.1,0.5616]
[1739150149876,3.96797,2630.6,2629.7,43.57827401]
[1739150150279,0.6082,2630.5,2629.7,2.77827401]
[1739150150477,3.96807,2630.3,2629.7,2.77827401]
[1739150150976,4.01733527,2630.2,2629.6,1.1707]
[1739150151274,4.77762527,2630.2,2629.6,1.1707]
[1739150151475,4.0230401,2630.2,2629.6,0.5845]
[1739150151984,4.0230401,2630.2,2629.7,2.77827401]
[1739150152172,0.00570483,2630.2,2629.7,5.98607401]
[1739150152372,0.00570483,2630.2,2630.0,2.77827401]
[1739150153776,0.00570483,2630.2,2629.7,2.77827401]
[1739150157180,0.00570483,2630.2,2629.6,0.5845]
[1739150157384,3.2078,2630.0,2629.6,0.5845]
[1739150158180,4.55474,2630.0,2629.6,0.5845]
[1739150158372,4.37791345,2629.9,2629.6,0.5845]
[1739150159183,4.37791345,2629.9,2629.1,44.16447401]
[1739150159378,3.2078,2629.4,2629.0,0.5657]
[1739150159685,3.2078,2629.8,2629.2,3.2078]
[1739150160076,7.37914012,2629.8,2629.2,3.2078]
[1739150160478,4.17134012,2629.8,2629.1,3.38527401]
[1739150160779,0.5866,2630.0,2629.1,3.38527401]
[1739150160977,4.17134012,2629.9,2629.2,3.2078]
[1739150161172,4.17134012,2629.9,2629.1,3.38527401]
[1739150161173,0.5866,2630.0,2629.1,3.95567401]
[1739150161378,3.96819,2629.8,2629.1,0.607]
[1739150161582,3.9682,2629.8,2629.1,0.607]
[1739150161782,3.2078,2629.8,2629.1,0.607]
[1739150162176,3.2078,2629.4,2629.1,0.607]
[1739150162581,3.2078,2629.4,2629.0,0.5657]
[1739150162582,3.96832,2629.4,2629.0,0.5657]
[1739150162787,0.5875,2629.3,2629.0,0.5657]
[1739150163283,0.5875,2629.3,2628.6,41.3656]
[1739150163284,3.2078,2629.1,2628.6,0.5656]
[1739150165079,4.19255801,2629.0,2628.6,0.5656]
[1739150165482,3.2078,2628.8,2627.9,2.77827401]
[1739150165690,3.2078,2628.8,2627.7,0.581]
[1739150165980,3.2078,2628.3,2627.7,0.581]
[1739150166184,0.00570483,2628.5,2628.2,2.77827401]
[1739150166387,0.00570483,2628.5,2628.3,0.581]
[1739150166583,0.00570483,2628.5,2628.3,4.372]
[1739150166784,0.00570483,2628.5,2628.4,40.8]
[1739150167484,1.90055,2630.5,2628.4,40.8]
[1739150167485,0.5721,2629.8,2628.8,0.76067]
[1739150167685,0.5721,2629.8,2628.9,5.98607401]
[1739150167989,0.5721,2629.8,2629.0,1.1813]
[1739150168691,0.00570483,2629.7,2629.1,0.00570483]
[1739150169088,3.2078,2629.5,2629.1,0.00570483]
[1739150169291,0.76067,2628.9,2628.1,3.2078]
[1739150169590,3.2078,2628.6,2628.1,3.8125]
[1739150169790,3.20477993,2628.6,2628.1,3.8125]
[1739150170090,4.02081336,2628.5,2628.1,3.8125]
[1739150171479,3.20477993,2628.6,2628.1,3.8125]
[1739150172184,3.20477993,2628.6,2627.5,0.5791]
[1739150172185,3.2078,2628.2,2626.8,2.77827401]
[1739150172383,3.2078,2627.3,2627.1,0.4574]
[1739150172579,3.2078,2627.3,2626.7,3.91037401]
[1739150172786,0.00570483,2627.5,2627.2,0.4574]
[1739150172989,0.00570483,2627.5,2627.4,0.4574]
[1739150174489,0.00570483,2627.5,2627.0,2.77827401]
[1739150174786,3.2078,2627.3,2627.1,0.4574]
[1739150175289,3.9866539,2627.2,2626.6,44.0078]
[1739150175486,3.9866539,2627.2,2626.9,0.4574]
[1739150176583,3.2078,2627.3,2626.6,3.2078]
[1739150176584,3.2078,2627.3,2627.1,0.4574]
[1739150177185,4.36508108,2627.2,2626.1,2.77827401]
[1739150177382,3.2078,2626.7,2626.5,0.4574]
[1739150177992,4.36508108,2626.6,2625.8,44.16457401]
[1739150178185,4.36508108,2626.6,2626.2,0.4574]
[1739150178387,3.2078,2626.3,2625.0,3.2078]
[1739150178591,2.77827401,2626.5,2625.0,3.2078]
[1739150178592,3.2078,2625.5,2625.0,3.2078]
[1739150178782,3.2078,2625.5,2625.2,0.4574]
[1739150178990,4.10826666,2625.4,2625.2,0.4574]
[1739150180489,4.10826666,2625.4,2625.3,0.4574]
[1739150180688,3.2078,2625.5,2625.3,0.4574]
[1739150180893,3.2078,2625.5,2625.4,0.4574]
[1739150181992,3.2078,2625.8,2625.4,0.4574]
[1739150182193,3.2078,2625.8,2625.7,0.4574]
[1739150182692,7.522598,2625.8,2625.3,40.8]
[1739150182885,7.522598,2625.8,2625.5,0.4574]
[1739150183089,7.522598,2625.8,2625.3,0.4574]
[1739150183287,3.2078,2625.4,2625.3,0.4574]
[1739150183590,3.2078,2625.4,2625.2,2.77827401]
[1739150183788,3.2078,2625.8,2625.3,0.4574]
[1739150183991,3.2078,2625.8,2625.6,0.4574]
[1739150184292,3.2078,2625.8,2625.3,0.4574]
[1739150184293,7.51827256,2625.8,2625.3,0.4574]
[1739150184492,3.2078,2625.5,2625.3,0.4574]
[1739150184890,4.31047256,2625.4,2625.3,0.4574]
[1739150185188,3.21350483,2625.9,2625.4,0.4574]
[1739150185394,3.21350483,2625.9,2625.5,0.4574]
[1739150185599,4.34111475,2625.8,2625.2,2.77827401]
[1739150185796,4.34111475,2625.8,2625.4,0.4574]
[1739150185992,4.34111475,2625.8,2625.2,2.77827401]
[1739150186191,4.34111475,2625.8,2625.6,0.4574]
[1739150186499,7.11938876,2625.8,2624.3,2.77827401]
[1739150186697,3.2078,2625.0,2624.8,0.4574]
[1739150186995,3.2078,2625.0,2624.9,0.4574]
[1739150187191,3.2078,2625.0,2624.3,2.77827401]
[1739150187387,3.2078,2625.0,2624.8,0.4574]
[1739150187587,3.2078,2625.0,2624.9,0.4574]
[1739150188391,3.2078,2625.0,2624.3,2.77827401]
[1739150188697,7.18556098,2625.0,2624.7,0.4574]
[1739150189498,3.2078,2625.0,2624.9,0.4574]
[1739150189695,3.2078,2625.3,2624.9,0.4574]
[1739150189993,4.34568413,2625.4,2625.3,0.4574]
[1739150190192,4.34568413,2625.4,2625.2,0.4574]
[1739150190389,3.2078,2625.3,2624.6,2.77827401]
[1739150190596,3.2078,2625.3,2624.9,5.98607401]
[1739150190800,3.2078,2625.3,2625.0,1.6184]
[1739150190992,4.34568413,2625.2,2625.0,1.6184]
[1739150191194,5.10742413,2625.2,2624.3,2.77827401]
[1739150191397,3.2078,2624.8,2624.7,0.4574]
[1739150191600,3.2078,2624.8,2624.6,0.4574]
[1739150191800,7.26369694,2624.8,2624.4,0.4574]
[1739150192196,7.26369694,2624.8,2624.7,0.4574]
[1739150192390,3.2078,2625.1,2624.7,0.4574]
[1739150192595,3.2078,2625.1,2624.9,0.4574]
[1739150192900,3.2078,2625.1,2625.0,0.4574]
[1739150193399,3.2078,2625.5,2625.0,0.4574]
[1739150193700,3.2078,2625.5,2625.1,0.4574]
[1739150193895,3.2078,2625.2,2625.1,0.4574]
[1739150194096,3.2078,2625.2,2624.6,4.51007401]
[1739150194304,3.2078,2624.9,2624.8,0.4574]
[1739150195099,17.79719132,2624.9,2623.6,3.2078]
[1739150195397,3.2078,2624.3,2624.0,0.4574]
[1739150195596,3.2078,2624.3,2624.1,0.4574]
[1739150195796,3.2078,2624.3,2623.5,1.1896]
[1739150196003,3.2078,2624.0,2623.7,0.4574]
[1739150196404,4.23323205,2623.9,2623.7,0.4574]
[1739150196702,4.23323205,2623.9,2623.5,1.1896]
[1739150196904,4.23323205,2623.9,2623.8,0.4574]
[1739150197201,4.23323205,2623.9,2623.5,0.4574]
[1739150197406,3.2078,2623.7,2623.5,0.4574]
[1739150197801,3.98825598,2623.6,2623.5,0.4574]
[1739150198199,9.98825598,2623.6,2623.1,0.6012]
[1739150198402,3.2078,2623.4,2623.2,0.4574]
[1739150198804,4.27609496,2623.3,2623.2,0.4574]
[1739150199610,3.2078,2623.9,2623.2,0.4574]
[1739150199911,4.09839877,2623.8,2623.7,0.4574]
[1739150200403,3.2078,2623.9,2623.7,0.4574]
[1739150200609,1.86171614,2624.5,2623.3,0.5546]
[1739150200610,7.61947355,2623.8,2623.3,0.5546]
[1739150200810,7.61947355,2623.8,2623.5,0.4574]
[1739150201005,3.2078,2623.8,2623.5,0.4574]
[1739150201214,4.11177774,2623.7,2623.3,0.5546]
[1739150201414,3.2078,2623.4,2623.3,0.5546]
[1739150201804,3.2078,2623.7,2623.3,1.012]
[1739150202003,3.2078,2623.7,2623.6,0.4574]
[1739150202607,3.2078,2624.0,2623.6,0.4574]
[1739150202909,1.1643,2624.4,2623.8,0.4574]
[1739150202910,3.2078,2623.9,2623.8,0.4574]
[1739150203113,7.41036679,2623.9,2623.8,0.4574]
[1739150203302,3.2078,2623.9,2623.8,0.4574]
[1739150204509,3.2078,2624.2,2623.8,0.4574]
[1739150204707,3.2078,2624.2,2623.4,0.5774]
[1739150204903,3.2078,2624.2,2624.1,0.4574]
[1739150207014,3.2078,2624.2,2623.5,40.8]
[1739150207215,7.20056133,2624.2,2623.7,0.4574]
[1739150208210,7.20056133,2624.2,2623.8,0.4574]
[1739150209216,7.20056133,2624.2,2623.4,0.5774]
[1739150209217,0.76213,2623.8,2623.4,0.5774]
[1739150209416,3.2078,2623.6,2623.4,0.5774]
[1739150209710,3.2078,2623.6,2623.5,0.4574]
[1739150210013,4.21344534,2623.5,2622.8,0.5849]
[1739150210318,3.2078,2623.6,2623.3,0.4574]
[1739150210518,3.2078,2623.6,2623.2,0.4574]
[1739150210713,4.17379355,2623.4,2622.8,4.28051588]
[1739150211012,3.2078,2623.9,2623.5,0.4574]
[1739150211217,3.2078,2623.9,2623.7,0.4574]
[1739150211415,4.24510564,2623.8,2623.7,0.4574]
[1739150212521,10.62560564,2623.8,2622.8,1.1744]
[1739150212817,3.2078,2623.3,2623.2,0.4574]
[1739150213019,3.2078,2623.6,2623.2,0.4574]
[1739150213416,4.11431167,2623.5,2622.9,0.76238]
[1739150213615,4.11431167,2623.5,2623.0,3.2078]
[1739150213922,3.2078,2623.6,2623.4,0.4574]
[1739150214218,3.2078,2623.6,2623.5,0.4574]
[1739150215016,3.2078,2623.9,2623.5,0.4574]
[1739150215222,3.2078,2623.9,2623.7,0.4574]
[1739150215520,4.07991244,2623.8,2623.7,0.4574]
[1739150216117,3.21351614,2624.5,2623.7,0.4574]
[1739150216423,4.17191908,2624.4,2624.3,0.4574]
[1739150216727,4.17191908,2624.4,2623.9,0.5782]
[1739150216909,3.21351614,2624.5,2624.3,0.4574]
[1739150217222,3.21351614,2624.5,2624.4,0.4574]
[1739150219322,7.21228726,2624.5,2623.9,0.5782]
[1739150219516,7.21228726,2624.5,2624.2,0.4574]
[1739150219717,0.00571614,2624.5,2624.4,3.24862085]
[1739150220114,0.00571614,2624.5,2624.4,4.59228085]
[1739150220320,3.2078,2625.2,2624.4,7.03812085]
[1739150220515,3.2078,2625.2,2624.9,0.4574]
[1739150220716,4.30554413,2625.1,2624.9,0.4574]
[1739150220917,3.2078,2625.2,2625.1,0.4574]
[1739150222520,3.2078,2625.2,2624.9,0.00571614]
[1739150222726,7.56771517,2625.2,2624.9,0.00571614]
[1739150223123,0.5746,2625.1,2624.9,0.00571614]
[1739150223325,7.56771517,2625.2,2624.9,0.00571614]
[1739150223626,4.02609895,2625.0,2624.9,0.00571614]
[1739150223823,7.23389895,2625.1,2624.9,0.00571614]
[1739150224026,3.2078,2625.1,2624.9,0.00571614]
[1739150224525,4.16560427,2625.0,2624.9,0.00571614]
[1739150225520,4.16560427,2625.0,2624.9,0.46311614]
[1739150225719,0.00571614,2625.4,2624.9,0.46311614]
[1739150225920,0.00571614,2625.4,2625.3,0.4574]
[1739150226730,0.00571614,2625.4,2625.3,3.24862085]
[1739150227330,0.00571614,2625.4,2625.3,0.4574]
[1739150228430,3.2078,2626.1,2625.3,9.24862085]
[1739150228734,3.2078,2626.1,2625.6,2.79122085]
[1739150228937,3.2078,2626.1,2626.0,0.4574]
[1739150230037,0.00571614,2626.3,2626.0,0.4574]
[1739150230331,0.00571614,2626.3,2626.2,0.4574]
[1739150232234,4.27135673,2626.3,2625.8,0.5969]
[1739150232431,3.2078,2625.9,2625.8,0.4574]
[1739150233530,3.2078,2625.9,2625.4,0.5969]
[1739150233723,7.34662987,2625.9,2625.6,0.4574]
[1739150233925,0.6109,2625.8,2625.6,0.4574]
[1739150234532,4.37001866,2625.7,2625.6,0.4574]
[1739150234727,4.37001866,2625.7,2625.3,2.79122085]
[1739150235036,3.2078,2626.2,2625.6,3.24862085]
[1739150235332,4.17426732,2626.2,2626.0,0.4574]
[1739150235635,3.2078,2626.1,2626.0,0.4574]
[1739150236333,7.26752391,2626.1,2626.0,0.4574]
[1739150236540,3.2078,2626.1,2626.0,0.4574]
[1739150241929,0.00571614,2626.3,2626.0,0.4574]
[1739150242129,0.00571614,2626.3,2626.2,3.24862085]
[1739150243435,3.2078,2627.0,2626.2,3.24862085]
[1739150243631,3.2078,2627.0,2626.9,0.4574]
[1739150243837,7.23011306,2627.0,2626.9,0.4574]
[1739150244238,3.2078,2627.0,2626.9,0.4574]
[1739150244433,3.2078,2627.0,2626.3,1.1295]
[1739150244733,3.2078,2626.7,2626.3,0.4574]
[1739150244931,3.2078,2626.7,2626.4,0.00571614]
[1739150245136,3.2078,2627.0,2626.6,0.4574]
[1739150245338,3.2078,2627.0,2626.8,0.4574]
[1739150245533,4.29983444,2626.9,2626.8,0.4574]
[1739150245733,4.29983444,2626.9,2626.4,0.00571614]
[1739150245933,3.2078,2626.7,2626.4,0.00571614]
[1739150246133,3.2078,2626.7,2626.5,0.4574]
[1739150246334,3.82027592,2626.6,2626.5,0.4574]
[1739150246939,3.82027592,2626.6,2626.4,0.00571614]
[1739150247238,3.82027592,2626.6,2626.4,0.46311614]
[1739150248344,3.82027592,2626.6,2626.5,0.4574]
[1739150248537,3.2078,2627.0,2626.5,0.4574]
[1739150248731,3.2078,2627.0,2626.9,0.4574]
[1739150252747,3.2078,2627.5,2626.9,0.4574]
[1739150252939,3.2078,2627.5,2627.1,0.4574]
[1739150253246,3.21351614,2627.2,2627.1,0.4574]
[1739150253943,3.21351614,2627.2,2626.7,0.5934]
[1739150254148,3.2078,2627.1,2626.8,0.4574]
[1739150254345,4.3341,2627.1,2626.8,0.4574]
[1739150254648,4.11022115,2627.0,2626.8,0.4574]
[1739150254844,4.11022115,2627.0,2626.8,2.79122085]
[1739150255041,0.00571614,2627.2,2626.9,1.0527]
[1739150255241,0.00571614,2627.2,2627.1,0.4574]
[1739150258049,0.00571614,2627.2,2627.1,3.24862085]
[1739150258649,0.00571614,2627.2,2627.1,3.81172085]
[1739150260552,3.2078,2628.0,2627.1,7.78070085]
[1739150260746,3.2078,2628.0,2627.8,0.4574]
[1739150260945,7.30012991,2628.0,2627.8,0.4574]
[1739150261146,7.30012991,2628.0,2627.9,0.4574]
[1739150261345,3.2078,2628.0,2627.9,0.4574]
[1739150262057,0.00571614,2628.2,2627.9,0.4574]
[1739150262251,0.00571614,2628.2,2628.1,0.4574]
[1739150264251,5.03065475,2628.2,2627.8,0.00571614]
[1739150264447,3.2078,2627.9,2627.8,0.00571614]
[1739150264948,3.2078,2627.9,2627.8,0.46311614]
[1739150264949,7.47187861,2627.9,2627.8,0.46311614]
[1739150265155,3.21351614,2628.2,2627.8,0.46311614]
[1739150265451,3.21351614,2628.2,2628.1,0.4574]
[1739150266256,7.38103498,2628.2,2627.8,0.00571614]
[1739150266462,3.2078,2627.9,2627.8,0.46311614]
[1739150267153,3.21351614,2628.2,2627.8,0.46311614]
[1739150267353,3.21351614,2628.2,2628.1,0.4574]
[1739150269255,3.21351614,2628.2,2627.8,0.00571614]
[1739150269256,3.97438614,2628.2,2627.8,0.00571614]
[1739150269459,3.2078,2627.9,2627.8,0.46311614]
[1739150269757,3.2078,2627.9,2627.8,0.00571614]
[1739150270061,3.2078,2627.9,2627.8,0.46311614]
[1739150270954,3.2078,2627.9,2627.8,1.06211614]
[1739150271154,3.21351614,2628.2,2627.8,1.06211614]
[1739150271359,3.21351614,2628.2,2628.1,0.4574]
[1739150275667,3.21351614,2628.2,2628.1,1.0144]
[1739150275966,0.00571614,2628.2,2628.1,1.0144]
[1739150277157,3.21351614,2628.2,2628.1,1.0144]
[1739150277365,3.21351614,2628.2,2628.1,0.4574]
[1739150278063,3.21351614,2628.2,2627.8,0.60471614]
[1739150278271,4.04520474,2628.2,2628.0,0.4574]
[1739150278464,3.2078,2628.1,2628.0,0.4574]
[1739150279864,7.44921213,2628.1,2627.8,0.00571614]
[1739150280064,7.44921213,2628.1,2627.8,0.46311614]
[1739150280264,8.21010213,2628.1,2627.8,0.46311614]
[1739150280465,7.44921213,2628.1,2627.8,0.46311614]
[1739150280662,7.44921213,2628.1,2628.0,0.4574]
[1739150280864,3.2078,2628.1,2628.0,0.4574]
[1739150281070,0.00571614,2628.2,2628.0,0.4574]
[1739150281372,3.2078,2628.1,2627.8,0.00571614]
[1739150281575,7.53687711,2628.1,2627.8,0.46311614]
[1739150281781,7.53687711,2628.1,2628.0,0.4574]
[1739150282474,0.76094,2627.9,2627.8,0.00571614]
[1739150282673,0.76102,2627.7,2627.1,2.39253076]
[1739150282879,3.2078,2627.4,2627.3,0.4574]
[1739150284478,3.2078,2627.4,2627.1,0.00571614]
[1739150284779,3.2078,2627.4,2627.2,0.4574]
[1739150284971,3.2078,2627.4,2627.3,0.4574]
[1739150285177,3.2078,2627.4,2627.2,0.4574]
[1739150288176,3.8156,2627.4,2627.2,0.4574]
[1739150288979,0.76115,2627.2,2627.1,0.00571614]
[1739150289280,0.76124,2626.9,2626.3,0.5598]
[1739150289477,3.2078,2626.6,2626.5,0.4574]
[1739150289683,3.2078,2626.6,2626.1,0.60872992]
[1739150289982,3.2078,2626.6,2626.4,0.4574]
[1739150289983,7.38454178,2626.6,2626.4,0.4574]
[1739150290176,7.38454178,2626.6,2626.1,0.60872992]
[1739150290376,3.2078,2626.3,2626.2,0.00571614]
[1739150290779,3.2078,2626.3,2626.2,0.46311614]
[1739150293577,3.21351614,2626.8,2626.2,0.46311614]
[1739150293786,3.21351614,2626.8,2626.7,0.4574]
[1739150295495,7.53597456,2626.8,2626.4,0.6049]
[1739150295786,3.2078,2626.5,2626.4,0.4574]
[1739150295984,3.2078,2626.5,2626.2,0.00571614]
[1739150296183,3.2078,2626.5,2626.2,0.57171614]
[1739150296388,7.53025842,2626.5,2626.3,0.4574]
[1739150297088,8.29161842,2626.5,2626.3,0.4574]
[1739150297798,7.53025842,2626.5,2626.3,0.4574]
[1739150298685,8.29160842,2626.5,2626.3,0.4574]
[1739150299389,7.53025842,2626.5,2626.3,0.4574]
[1739150300189,3.2078,2626.5,2626.4,0.4574]
[1739150301187,3.21351614,2626.8,2626.4,0.4574]
[1739150301388,3.21351614,2626.8,2626.7,0.4574]
[1739150302985,3.21351614,2626.8,2626.2,0.00571614]
[1739150303186,3.96921,2626.3,2626.2,0.00571614]
[1739150303392,0.76144,2626.2,2625.2,2.78525206]
[1739150303589,3.2078,2625.7,2625.2,2.78525206]
[1739150304090,3.2078,2625.7,2625.1,1.7391]
[1739150304091,3.2078,2625.4,2625.1,1.7391]
[1739150304290,3.2078,2625.4,2625.1,1.1625]
[1739150305194,3.2078,2625.7,2625.1,1.1625]
[1739150305389,3.2078,2625.7,2625.2,2.78525206]
[1739150305689,3.2078,2625.7,2625.1,1.1625]
[1739150305887,4.06011595,2626.0,2625.1,1.1625]
[1739150305888,3.2078,2625.4,2625.1,1.1625]
[1739150308287,4.0382481,2625.3,2625.0,0.00571614]
[1739150308593,3.2078,2625.1,2625.0,0.00571614]
[1739150308986,7.54624025,2625.1,2625.0,0.00571614]
[1739150310694,3.2078,2625.1,2625.0,0.00571614]
[1739150311292,3.21351614,2625.4,2625.0,0.00571614]
[1739150311895,3.21351614,2625.4,2625.0,0.58341614]
[1739150315999,3.21351614,2625.4,2625.2,2.39756789]
[1739150316194,0.00571614,2625.4,2625.3,0.6089]
[1739150316401,0.00571614,2625.4,2625.3,1.1842]
[1739150320393,0.00571614,2625.4,2625.3,0.6089]
[1739150320598,3.21351614,2625.4,2625.3,0.6089]
[1739150320797,3.21351614,2625.4,2625.0,0.00571614]
[1739150320999,3.2078,2625.1,2625.0,0.00571614]
[1739150322696,3.2078,2625.1,2624.2,2.39756789]
[1739150322697,7.52647621,2625.1,2624.2,2.39756789]
[1739150322901,3.2078,2624.5,2624.1,0.6099]
[1739150323610,3.2078,2624.8,2624.2,2.39756789]
[1739150323801,3.2078,2624.8,2624.5,2.39756789]
[1739150324001,3.2078,2624.8,2624.6,0.5628]
[1739150325506,4.2057046,2624.7,2624.6,0.5628]
[1739150325806,3.2078,2624.8,2624.6,0.5628]
[1739150328411,3.2078,2624.8,2624.2,2.96056789]
[1739150328610,3.2078,2624.8,2624.3,0.6056]
[1739150330316,3.96965,2624.8,2624.3,0.6056]
[1739150330504,3.2078,2624.8,2624.3,0.6056]
[1739150332108,4.10939621,2624.7,2624.3,0.6056]
[1739150332615,3.2078,2624.5,2624.3,0.6056]
[1739150333318,3.7793,2624.8,2624.3,0.6056]
[1739150333618,4.17895031,2624.7,2624.3,0.6056]
[1739150334313,3.2078,2624.8,2624.5,2.39756789]
[1739150334509,3.2078,2624.8,2624.5,43.19756789]
[1739150335211,3.2078,2624.8,2624.5,2.39756789]
[1739150335611,3.2078,2624.8,2624.6,0.583]
[1739150336016,3.2078,2624.8,2624.3,0.6056]
[1739150336214,3.2078,2624.5,2624.3,0.6056]
[1739150336513,3.2078,2624.5,2623.9,3.56136789]
[1739150336713,3.2078,2624.5,2624.0,0.5651]
[1739150338917,0.5793,2624.6,2624.0,0.5651]
[1739150339213,3.2078,2624.5,2624.0,0.5651]
[1739150340017,3.2078,2624.8,2624.0,0.5651]
[1739150340315,3.2078,2624.8,2624.5,2.39756789]
[1739150340516,3.2078,2624.8,2624.6,0.5582]
[1739150340814,3.2078,2624.8,2624.6,1.1135]
[1739150341212,3.2078,2625.2,2624.6,1.1135]
[1739150341518,7.94983133,2625.2,2624.6,1.1135]
[1739150341713,3.2078,2624.9,2624.2,2.39756789]
[1739150341920,3.2078,2624.9,2624.2,3.00796789]
[1739150342120,3.2078,2624.6,2624.2,3.00796789]
[1739150342817,3.2078,2624.3,2624.2,0.6104]
[1739150343014,3.2078,2624.3,2623.7,0.564]
[1739150343217,3.2078,2624.0,2623.7,0.6104]
[1739150344521,4.35116542,2623.9,2622.9,20.53956789]
[1739150344718,3.2078,2623.2,2622.7,1.122]
[1739150345114,3.21351614,2623.2,2622.7,1.122]
[1739150347410,4.14075762,2623.1,2622.7,0.558]
[1739150350725,3.21351614,2623.2,2622.7,0.558]
[1739150350926,3.21351614,2623.2,2622.9,2.79384406]
[1739150351118,0.00571614,2623.2,2622.9,2.79384406]
[1739150352832,3.21351614,2623.2,2622.8,0.5672]
[1739150353325,0.00571614,2623.2,2622.8,0.5672]
[1739150353625,3.21351614,2623.2,2622.8,0.5672]
[1739150353826,3.21351614,2623.2,2622.7,0.558]
[1739150358422,3.2078,2622.8,2622.3,0.5611]
[1739150358627,3.2078,2622.5,2622.3,0.5611]
[1739150359327,4.01185917,2622.4,2621.9,3.2078]
[1739150359523,3.2078,2622.5,2622.0,0.5734]
[1739150359924,3.2078,2622.5,2622.0,4.12989406]
[1739150360129,3.2078,2622.8,2622.3,2.79384406]
[1739150360324,3.2078,2622.8,2622.4,0.6016]
[1739150360925,3.2078,2622.8,2622.0,3.36724406]
[1739150360926,3.2078,2622.5,2622.0,3.36724406]
[1739150361127,3.2078,2622.1,2622.0,1.175]
[1739150361329,7.22644215,2622.4,2622.0,1.175]
[1739150361625,3.2078,2622.4,2622.0,1.175]
[1739150361830,3.2078,2622.4,2622.0,3.96884406]
[1739150362029,3.2078,2622.7,2622.0,3.96884406]
[1739150362332,4.15709702,2622.6,2622.0,3.96884406]
[1739150362723,3.2078,2622.7,2622.0,3.96884406]
[1739150362925,3.2078,2622.7,2622.1,0.6111]
[1739150364332,3.8084,2623.0,2622.3,2.79384406]
[1739150364828,3.2078,2622.4,2622.2,40.8]
[1739150365026,3.2078,2622.4,2622.1,0.6111]
[1739150365424,3.2078,2622.7,2622.1,0.6111]
[1739150365830,3.2078,2622.4,2622.1,0.6111]
[1739150366035,3.2078,2622.7,2622.1,0.6111]
[1739150367833,3.2078,2622.7,2622.1,2.79496126]
[1739150369725,3.8084,2623.0,2622.1,2.79496126]
[1739150370034,3.2078,2622.7,2622.1,2.79496126]
[1739150370637,3.2078,2622.7,2622.1,2.18386126]
[1739150370839,3.2078,2622.4,2622.1,2.18386126]
[1739150371338,3.2078,2622.7,2622.1,2.18386126]
[1739150371632,3.2078,2622.4,2622.0,1.175]
[1739150372335,3.2078,2622.1,2621.5,2.18386126]
[1739150372533,3.2078,2622.4,2621.7,0.5637]
[1739150372837,3.97034,2622.4,2621.7,0.5637]
[1739150373035,3.2078,2622.1,2621.7,0.5637]
[1739150373638,3.2078,2622.1,2621.8,2.18386126]
[1739150373832,3.2078,2622.4,2621.8,2.18386126]
[1739150374337,3.2078,2622.1,2621.7,0.5637]
[1739150375736,3.2078,2622.1,2621.8,2.18386126]
[1739150377536,3.2078,2622.1,2621.7,0.5637]
[1739150382338,3.2078,2621.8,2621.7,0.5637]
[1739150383035,3.2078,2621.8,2621.3,0.6108]
[1739150383540,0.00571614,2621.8,2621.5,2.18386126]
[1739150385137,0.00571614,2621.8,2621.3,0.6108]
[1739150385345,3.2078,2621.7,2621.3,0.6108]
[1739150387141,0.6101,2621.6,2620.9,2.77206126]
[1739150387340,0.6101,2621.6,2621.0,0.561]
[1739150387536,1.37288,2621.6,2621.0,0.561]
[1739150387743,0.6101,2621.6,2621.0,0.561]
[1739150389042,3.2078,2621.4,2621.0,0.561]
[1739150392649,0.00571614,2621.8,2621.2,2.18386126]
[1739150392842,0.00571614,2621.8,2621.5,2.18386126]
[1739150393042,3.2078,2622.3,2621.6,41.9309]
[1739150393242,3.2078,2622.3,2621.9,2.18386126]
[1739150393447,3.2078,2622.3,2622.0,0.5678]
[1739150395045,0.00571614,2622.4,2622.0,0.5678]
[1739150397446,3.2078,2622.3,2622.0,0.5678]
[1739150397856,3.2078,2622.3,2621.9,0.00571614]
[1739150399449,3.2078,2622.3,2621.9,2.1895774]
[1739150399842,3.2078,2622.3,2621.9,0.00571614]
[1739150400153,3.2078,2622.0,2621.9,0.00571614]
[1739150401657,0.76273,2621.8,2621.2,0.00437235]
[1739150401856,13.42775477,2622.0,2621.2,0.00437235]
[1739150401857,3.2078,2621.5,2621.2,0.00437235]
[1739150402254,4.70998262,2621.4,2621.2,0.00437235]
[1739150403258,4.70998262,2621.4,2620.3,3.2078]
[1739150403259,0.76294,2621.1,2620.3,3.2078]
[1739150403460,3.2078,2620.9,2620.3,3.2078]
[1739150404960,3.2078,2620.9,2620.6,2.18386126]
[1739150406959,3.2078,2620.9,2620.7,0.5924]
[1739150407350,0.00571614,2621.0,2620.7,6.5924]
[1739150407660,3.2078,2621.5,2620.9,2.79711331]
[1739150407954,3.2078,2621.5,2621.0,0.5813]
[1739150408754,3.21351614,2621.5,2621.0,0.58701614]
[1739150408953,3.21351614,2621.5,2621.3,2.79711331]
[1739150409161,0.00571614,2621.5,2621.4,0.5812]
[1739150410862,0.00571614,2621.5,2621.4,1.1702]
[1739150411356,0.00571614,2621.5,2621.4,0.589]